[Event "Late-Titled-Tuesday-Blitz-April-02-2024"]
[Site "Chess.com"]
[Date "2024.04.02"]
[Round "8"]
[White "SmirnovTimofey2000"]
[Black "Sesleria"]
[Result "0-1"]
[WhiteElo "1945"]
[BlackElo "2157"]
[TimeControl "180+1"]
[EndTime "15:23:25 PDT"]
[Termination "Sesleria won by resignation"]

1. e4 {[%clk 0:02:54.4]} 1... c5 {[%clk 0:02:59.9]} 2. c3 {[%clk 0:02:53]} 2...
d5 {[%clk 0:02:58.5]} 3. exd5 {[%clk 0:02:52.9]} 3... Qxd5 {[%clk 0:02:58.8]} 4.
d4 {[%clk 0:02:53.6]} 4... Nc6 {[%clk 0:02:58.9]} 5. Nf3 {[%clk 0:02:54.1]} 5...
e5 {[%clk 0:02:59.2]} 6. dxe5 {[%clk 0:02:50.9]} 6... Qxd1+ {[%clk 0:02:59]} 7.
Kxd1 {[%clk 0:02:51.7]} 7... Bg4 {[%clk 0:02:59.2]} 8. Bb5 {[%clk 0:02:42.5]}
8... O-O-O+ {[%clk 0:02:58.2]} 9. Kc2 {[%clk 0:02:24.4]} 9... Bf5+ {[%clk
0:02:57.7]} 10. Kb3 {[%clk 0:02:19.4]} 10... c4+ {[%clk 0:02:42.3]} 11. Ka4
{[%clk 0:02:00.5]} 11... Bd7 {[%clk 0:02:36]} 12. Bxc4 {[%clk 0:01:29]} 12... a6
{[%clk 0:01:41.4]} 13. b4 {[%clk 0:01:01.4]} 13... b5+ {[%clk 0:01:35]} 0-1

[Event "Late-Titled-Tuesday-Blitz-April-02-2024"]
[Site "Chess.com"]
[Date "2024.04.02"]
[Round "8"]
[White "UK_23"]
[Black "Navyblue1"]
[Result "0-1"]
[WhiteElo "2393"]
[BlackElo "2287"]
[TimeControl "180+1"]
[EndTime "15:23:42 PDT"]
[Termination "Navyblue1 won by resignation"]

1. e4 {[%clk 0:03:00.9]} 1... c5 {[%clk 0:02:49.6]} 2. Nf3 {[%clk 0:03:01.2]}
2... d6 {[%clk 0:02:48.1]} 3. d4 {[%clk 0:03:01.3]} 3... cxd4 {[%clk 0:02:48.7]}
4. Qxd4 {[%clk 0:03:02.2]} 4... a6 {[%clk 0:02:41.7]} 5. Be2 {[%clk 0:03:00.6]}
5... Nc6 {[%clk 0:02:42.1]} 6. Qe3 {[%clk 0:03:00.9]} 6... Nf6 {[%clk 0:02:32]}
7. h3 {[%clk 0:03:01]} 7... g6 {[%clk 0:02:30.7]} 8. O-O {[%clk 0:03:01.1]} 8...
Bg7 {[%clk 0:02:30.8]} 9. Rd1 {[%clk 0:03:01.9]} 9... Qc7 {[%clk 0:02:28]} 10.
c4 {[%clk 0:03:01.4]} 10... O-O {[%clk 0:02:27.8]} 11. Nc3 {[%clk 0:03:02]}
11... Na5 {[%clk 0:02:20.2]} 12. Bd2 {[%clk 0:02:22.8]} 12... Nxc4 {[%clk
0:02:19.2]} 13. Bxc4 {[%clk 0:02:23.7]} 13... Qxc4 {[%clk 0:02:18.3]} 14. Rac1
{[%clk 0:02:24.3]} 14... Qe6 {[%clk 0:02:14.3]} 15. Nd4 {[%clk 0:02:21.8]} 15...
Qd7 {[%clk 0:02:12.6]} 16. f4 {[%clk 0:02:16.4]} 16... e5 {[%clk 0:02:07.9]} 17.
fxe5 {[%clk 0:02:10.7]} 17... dxe5 {[%clk 0:02:08.8]} 18. Nf3 {[%clk 0:02:10.7]}
18... Qe6 {[%clk 0:02:07]} 19. Ng5 {[%clk 0:02:05.1]} 19... Qe7 {[%clk
0:02:03.3]} 20. Na4 {[%clk 0:01:50.4]} 20... Be6 {[%clk 0:01:57]} 21. Nb6 {[%clk
0:01:49.8]} 21... Rad8 {[%clk 0:01:56.1]} 22. a3 {[%clk 0:01:45.1]} 22... Rfe8
{[%clk 0:01:40.2]} 23. Bb4 {[%clk 0:01:44.8]} 23... Rxd1+ {[%clk 0:01:38.8]} 24.
Rxd1 {[%clk 0:01:45.7]} 24... Qc7 {[%clk 0:01:37.6]} 25. Nxe6 {[%clk 0:01:44.2]}
25... Rxe6 {[%clk 0:01:33.9]} 26. Rc1 {[%clk 0:01:24.5]} 26... Rc6 {[%clk
0:01:25.9]} 27. Rc2 {[%clk 0:01:20.4]} 27... Rxc2 {[%clk 0:01:23.1]} 0-1

[Event "Late-Titled-Tuesday-Blitz-April-02-2024"]
[Site "Chess.com"]
[Date "2024.04.02"]
[Round "8"]
[White "burritus"]
[Black "Squirlolz"]
[Result "0-1"]
[WhiteElo "2429"]
[BlackElo "2577"]
[TimeControl "180+1"]
[EndTime "15:23:51 PDT"]
[Termination "Squirlolz won by resignation"]

1. d4 {[%clk 0:03:00.9]} 1... c5 {[%clk 0:03:00.2]} 2. d5 {[%clk 0:03:00.5]}
2... g6 {[%clk 0:03:00.4]} 3. e4 {[%clk 0:02:59.9]} 3... Bg7 {[%clk 0:03:01.3]}
4. Nf3 {[%clk 0:03:00.2]} 4... d6 {[%clk 0:03:01.2]} 5. Nc3 {[%clk 0:03:00.8]}
5... Bxc3+ {[%clk 0:03:01]} 6. bxc3 {[%clk 0:03:00]} 6... e5 {[%clk 0:03:01.5]}
7. h4 {[%clk 0:02:55.9]} 7... h6 {[%clk 0:02:59.4]} 8. Bb5+ {[%clk 0:02:51.6]}
8... Bd7 {[%clk 0:02:57.7]} 9. a4 {[%clk 0:02:52.2]} 9... f5 {[%clk 0:02:55.8]}
10. exf5 {[%clk 0:02:46.1]} 10... gxf5 {[%clk 0:02:55.8]} 11. c4 {[%clk
0:02:21.5]} 11... Nf6 {[%clk 0:02:53.4]} 12. Bb2 {[%clk 0:02:16.9]} 12... O-O
{[%clk 0:02:52.7]} 13. Qd2 {[%clk 0:02:13.4]} 13... Kh7 {[%clk 0:02:51.8]} 14.
Ng5+ {[%clk 0:02:09.9]} 14... hxg5 {[%clk 0:02:38.5]} 15. hxg5+ {[%clk
0:02:08.6]} 15... Kg7 {[%clk 0:02:39.4]} 16. gxf6+ {[%clk 0:02:08.3]} 16... Qxf6
{[%clk 0:02:40.3]} 17. f4 {[%clk 0:02:01.7]} 17... a6 {[%clk 0:02:38.9]} 18.
fxe5 {[%clk 0:02:00.5]} 18... dxe5 {[%clk 0:02:39.8]} 19. Bxd7 {[%clk
0:01:56.5]} 19... Nxd7 {[%clk 0:02:40.7]} 20. O-O-O {[%clk 0:01:56.5]} 20... b5
{[%clk 0:02:39.9]} 21. Rh3 {[%clk 0:01:49.3]} 21... Rh8 {[%clk 0:02:34.9]} 22.
Rg3+ {[%clk 0:01:45.4]} 22... Kf7 {[%clk 0:02:34.4]} 23. Rf1 {[%clk 0:01:46]}
23... bxc4 {[%clk 0:02:28.3]} 24. d6 {[%clk 0:01:45.3]} 24... Qe6 {[%clk
0:02:17.1]} 25. Qg5 {[%clk 0:01:43.6]} 25... Rag8 {[%clk 0:02:15.6]} 26. Rxf5+
{[%clk 0:01:42.5]} 26... Nf6 {[%clk 0:02:15.7]} 27. Rxe5 {[%clk 0:01:14.5]}
27... Rxg5 {[%clk 0:01:31.5]} 28. Rxe6 {[%clk 0:01:13.8]} 28... Kxe6 {[%clk
0:01:32.4]} 29. Rxg5 {[%clk 0:01:13]} 29... Rh1+ {[%clk 0:01:33]} 30. Kd2 {[%clk
0:01:11.2]} 30... Ne4+ {[%clk 0:01:33.9]} 31. Ke3 {[%clk 0:01:11]} 31... Nxg5
{[%clk 0:01:34.8]} 0-1

[Event "Late-Titled-Tuesday-Blitz-April-02-2024"]
[Site "Chess.com"]
[Date "2024.04.02"]
[Round "8"]
[White "Zkid"]
[Black "manitodeplomo"]
[Result "1-0"]
[WhiteElo "2842"]
[BlackElo "2628"]
[TimeControl "180+1"]
[EndTime "15:24:04 PDT"]
[Termination "Zkid won by resignation"]

1. e4 {[%clk 0:03:00.9]} 1... c5 {[%clk 0:02:56]} 2. Nf3 {[%clk 0:03:01]} 2...
e6 {[%clk 0:02:56]} 3. d4 {[%clk 0:03:01.3]} 3... cxd4 {[%clk 0:02:56.6]} 4.
Nxd4 {[%clk 0:03:02.2]} 4... a6 {[%clk 0:02:56.8]} 5. c4 {[%clk 0:03:01.8]} 5...
Nf6 {[%clk 0:02:56.2]} 6. Nc3 {[%clk 0:03:02.4]} 6... Bb4 {[%clk 0:02:56.5]} 7.
Qd3 {[%clk 0:03:02]} 7... Qc7 {[%clk 0:02:54.6]} 8. a3 {[%clk 0:03:02.2]} 8...
Bxc3+ {[%clk 0:02:53.4]} 9. Qxc3 {[%clk 0:03:03.1]} 9... O-O {[%clk 0:02:52.8]}
10. Bd3 {[%clk 0:02:53.3]} 10... d5 {[%clk 0:02:51]} 11. cxd5 {[%clk 0:02:50.8]}
11... Qxc3+ {[%clk 0:02:50]} 12. bxc3 {[%clk 0:02:51.7]} 12... exd5 {[%clk
0:02:50.5]} 13. e5 {[%clk 0:02:50.7]} 13... Ne4 {[%clk 0:02:47.4]} 14. c4 {[%clk
0:02:25.4]} 14... Nc5 {[%clk 0:02:40.9]} 15. Be2 {[%clk 0:02:22.9]} 15... dxc4
{[%clk 0:02:33.8]} 16. Bxc4 {[%clk 0:02:19.3]} 16... b5 {[%clk 0:02:22.9]} 17.
Be2 {[%clk 0:02:01.7]} 17... Bb7 {[%clk 0:02:18.4]} 18. O-O {[%clk 0:02:00.9]}
18... Nbd7 {[%clk 0:02:15.5]} 19. f4 {[%clk 0:01:59.4]} 19... Rac8 {[%clk
0:02:15.4]} 20. Nf5 {[%clk 0:01:58.1]} 20... Nb3 {[%clk 0:02:01]} 21. Ne7+
{[%clk 0:01:51.9]} 21... Kh8 {[%clk 0:02:00.1]} 22. Nxc8 {[%clk 0:01:52.1]}
22... Nxa1 {[%clk 0:01:58.6]} 23. Nd6 {[%clk 0:01:52.7]} 23... Ba8 {[%clk
0:01:41.8]} 24. f5 {[%clk 0:01:44.6]} 24... Nxe5 {[%clk 0:01:35.5]} 25. Bb2
{[%clk 0:01:27.8]} 25... Nc2 {[%clk 0:01:21]} 26. Bxe5 {[%clk 0:01:26.6]} 26...
Ne3 {[%clk 0:01:19.5]} 27. Rc1 {[%clk 0:01:21.7]} 27... Nxg2 {[%clk 0:01:14.5]}
28. f6 {[%clk 0:01:18.3]} 28... g6 {[%clk 0:01:10]} 29. Nxf7+ {[%clk 0:01:17.2]}
1-0

[Event "Late-Titled-Tuesday-Blitz-April-02-2024"]
[Site "Chess.com"]
[Date "2024.04.02"]
[Round "8"]
[White "Zavgorodniy_Sergiy"]
[Black "bascheyaro"]
[Result "0-1"]
[WhiteElo "2640"]
[BlackElo "2823"]
[TimeControl "180+1"]
[EndTime "15:24:29 PDT"]
[Termination "bascheyaro won by checkmate"]

1. d4 {[%clk 0:03:00.9]} 1... d5 {[%clk 0:02:59.7]} 2. c4 {[%clk 0:03:01]} 2...
c6 {[%clk 0:02:59.9]} 3. e3 {[%clk 0:03:01.5]} 3... Nf6 {[%clk 0:03:00.4]} 4.
Bd3 {[%clk 0:03:01.6]} 4... Bg4 {[%clk 0:02:59.1]} 5. Qc2 {[%clk 0:03:01.5]}
5... e6 {[%clk 0:02:57.6]} 6. Nd2 {[%clk 0:03:01.7]} 6... Bh5 {[%clk 0:02:57.3]}
7. Ngf3 {[%clk 0:03:01.8]} 7... Nbd7 {[%clk 0:02:56.8]} 8. O-O {[%clk
0:03:01.8]} 8... Bd6 {[%clk 0:02:56.5]} 9. b3 {[%clk 0:03:01.9]} 9... Qe7 {[%clk
0:02:56.3]} 10. Bb2 {[%clk 0:03:02]} 10... O-O {[%clk 0:02:55.4]} 11. Ne5 {[%clk
0:03:01.9]} 11... Bg6 {[%clk 0:02:48.1]} 12. Nxg6 {[%clk 0:03:01.5]} 12... fxg6
{[%clk 0:02:48.3]} 13. e4 {[%clk 0:03:02.4]} 13... Bxh2+ {[%clk 0:02:41.9]} 14.
Kxh2 {[%clk 0:02:54.5]} 14... Ng4+ {[%clk 0:02:42.1]} 15. Kg3 {[%clk 0:02:49.4]}
15... Qg5 {[%clk 0:01:44.5]} 16. f4 {[%clk 0:02:30.2]} 16... Rxf4 {[%clk
0:01:44.1]} 17. Rxf4 {[%clk 0:02:26.8]} 17... Ne3+ {[%clk 0:01:43.8]} 18. Kf3
{[%clk 0:02:22.7]} 18... Nxc2 {[%clk 0:01:40.1]} 19. Bxc2 {[%clk 0:02:23.6]}
19... e5 {[%clk 0:01:36]} 20. dxe5 {[%clk 0:02:14.9]} 20... Nxe5+ {[%clk
0:01:35.9]} 21. Ke3 {[%clk 0:02:04.8]} 21... Qg3+ {[%clk 0:01:07.8]} 22. Nf3
{[%clk 0:02:03.2]} 22... Ng4+ {[%clk 0:01:07.8]} 23. Rxg4 {[%clk 0:02:02.7]}
23... Qxg4 {[%clk 0:01:08.7]} 24. cxd5 {[%clk 0:02:00.3]} 24... cxd5 {[%clk
0:01:07.5]} 25. exd5 {[%clk 0:01:46.4]} 25... Qxg2 {[%clk 0:01:04.8]} 26. Rc1
{[%clk 0:01:40.8]} 26... Re8+ {[%clk 0:00:55.6]} 27. Be5 {[%clk 0:01:40.6]}
27... Rc8 {[%clk 0:00:55.3]} 28. Nd4 {[%clk 0:01:29.9]} 28... Rc3+ {[%clk
0:00:49.7]} 29. Kf4 {[%clk 0:01:25.9]} 29... Qg3+ {[%clk 0:00:43.7]} 30. Ke4
{[%clk 0:01:24.1]} 30... Qe3# {[%clk 0:00:43.9]} 0-1

[Event "Late-Titled-Tuesday-Blitz-April-02-2024"]
[Site "Chess.com"]
[Date "2024.04.02"]
[Round "8"]
[White "PetrolulSah"]
[Black "The_Straightforward_Rook"]
[Result "0-1"]
[WhiteElo "2220"]
[BlackElo "2367"]
[TimeControl "180+1"]
[EndTime "15:24:33 PDT"]
[Termination "The_Straightforward_Rook won by resignation"]

1. d4 {[%clk 0:02:58.6]} 1... d5 {[%clk 0:02:59.3]} 2. c4 {[%clk 0:02:57.4]}
2... c6 {[%clk 0:02:59.4]} 3. cxd5 {[%clk 0:02:55.4]} 3... cxd5 {[%clk
0:03:00.3]} 4. Bf4 {[%clk 0:02:55.3]} 4... Nf6 {[%clk 0:03:00.4]} 5. Nc3 {[%clk
0:02:54.7]} 5... Nc6 {[%clk 0:03:01]} 6. Nf3 {[%clk 0:02:53.2]} 6... Nh5 {[%clk
0:02:59.6]} 7. e3 {[%clk 0:02:47.9]} 7... Nxf4 {[%clk 0:02:58.2]} 8. exf4 {[%clk
0:02:48.8]} 8... Bf5 {[%clk 0:02:55.1]} 9. Be2 {[%clk 0:02:44.6]} 9... e6 {[%clk
0:02:54.4]} 10. O-O {[%clk 0:02:44.3]} 10... Bd6 {[%clk 0:02:53.9]} 11. Ne5
{[%clk 0:02:43.5]} 11... O-O {[%clk 0:02:50.3]} 12. Rc1 {[%clk 0:02:43.5]} 12...
Rc8 {[%clk 0:02:49.9]} 13. Qa4 {[%clk 0:02:34.9]} 13... Qb6 {[%clk 0:02:35.9]}
14. Nb5 {[%clk 0:02:04]} 14... Bb8 {[%clk 0:02:28.3]} 15. Nd7 {[%clk 0:02:00]}
15... Qd8 {[%clk 0:02:14.1]} 16. Nxf8 {[%clk 0:01:59.5]} 16... Qxf8 {[%clk
0:02:15]} 17. Nc3 {[%clk 0:01:45.2]} 17... Bxf4 {[%clk 0:02:14]} 18. Rcd1 {[%clk
0:01:41.7]} 18... g5 {[%clk 0:02:11.2]} 19. Bd3 {[%clk 0:01:36.6]} 19... Bg4
{[%clk 0:01:55.8]} 20. Ne2 {[%clk 0:01:31.8]} 20... Qh6 {[%clk 0:01:51.5]} 21.
h3 {[%clk 0:01:25.1]} 21... Bxh3 {[%clk 0:01:44]} 22. gxh3 {[%clk 0:01:18.1]}
22... Qxh3 {[%clk 0:01:44.9]} 23. Nxf4 {[%clk 0:01:10.1]} 23... gxf4 {[%clk
0:01:45.8]} 24. Rfe1 {[%clk 0:00:55.2]} 24... Kh8 {[%clk 0:01:41.5]} 25. Bg6
{[%clk 0:00:14.6]} 25... f3 {[%clk 0:01:36.1]} 0-1

[Event "Late-Titled-Tuesday-Blitz-April-02-2024"]
[Site "Chess.com"]
[Date "2024.04.02"]
[Round "8"]
[White "Darkdefense15"]
[Black "santosalberto1987"]
[Result "0-1"]
[WhiteElo "2384"]
[BlackElo "2527"]
[TimeControl "180+1"]
[EndTime "15:24:38 PDT"]
[Termination "santosalberto1987 won by resignation"]

1. d4 {[%clk 0:03:00.9]} 1... Nf6 {[%clk 0:02:59.9]} 2. Bf4 {[%clk 0:03:00.9]}
2... g6 {[%clk 0:02:59.4]} 3. Nc3 {[%clk 0:03:00.8]} 3... d5 {[%clk 0:02:56.3]}
4. e3 {[%clk 0:03:00.2]} 4... c6 {[%clk 0:02:54.1]} 5. h4 {[%clk 0:02:57.8]}
5... h6 {[%clk 0:02:51.3]} 6. Nf3 {[%clk 0:02:50.2]} 6... Bg7 {[%clk 0:02:49.1]}
7. Qd2 {[%clk 0:02:49.8]} 7... Bf5 {[%clk 0:02:46.6]} 8. Ne5 {[%clk 0:02:50]}
8... Nbd7 {[%clk 0:02:45.4]} 9. Be2 {[%clk 0:02:47.2]} 9... Nxe5 {[%clk
0:02:45.4]} 10. Bxe5 {[%clk 0:02:48.1]} 10... O-O {[%clk 0:02:43.9]} 11. f3
{[%clk 0:02:42.5]} 11... b5 {[%clk 0:02:18.9]} 12. g4 {[%clk 0:02:22.4]} 12...
Be6 {[%clk 0:02:16.2]} 13. h5 {[%clk 0:02:19.4]} 13... g5 {[%clk 0:02:13.7]} 14.
Bd3 {[%clk 0:02:19.4]} 14... a5 {[%clk 0:02:12.9]} 15. a4 {[%clk 0:02:15.3]}
15... b4 {[%clk 0:02:12.3]} 16. Ne2 {[%clk 0:02:14.8]} 16... Nd7 {[%clk
0:02:10.5]} 17. Bxg7 {[%clk 0:02:14.3]} 17... Kxg7 {[%clk 0:02:11.4]} 18. Ng3
{[%clk 0:02:13.1]} 18... c5 {[%clk 0:02:11.2]} 19. c3 {[%clk 0:02:08.1]} 19...
bxc3 {[%clk 0:02:09.9]} 20. bxc3 {[%clk 0:02:05]} 20... Rb8 {[%clk 0:02:07.7]}
21. Bb5 {[%clk 0:01:59.6]} 21... Nf6 {[%clk 0:02:00.1]} 22. Kf2 {[%clk
0:01:48.5]} 22... Qc7 {[%clk 0:01:58.6]} 23. Rab1 {[%clk 0:01:41]} 23... Rfc8
{[%clk 0:01:57.3]} 24. Rhc1 {[%clk 0:01:39.9]} 24... Bxg4 {[%clk 0:01:46.9]} 25.
dxc5 {[%clk 0:01:15.3]} 25... Bxf3 {[%clk 0:01:39.4]} 26. Nf5+ {[%clk
0:01:10.6]} 26... Kh7 {[%clk 0:01:36.6]} 27. Kxf3 {[%clk 0:01:06.8]} 27... Qe5
{[%clk 0:01:36.3]} 28. Bd3 {[%clk 0:01:03.5]} 28... Ne4 {[%clk 0:01:35.9]} 29.
Bxe4 {[%clk 0:00:39.3]} 29... Qxe4+ {[%clk 0:01:35.2]} 30. Kg3 {[%clk
0:00:31.1]} 30... Qxf5 {[%clk 0:01:35.1]} 31. Rxb8 {[%clk 0:00:27.1]} 31... Rxb8
{[%clk 0:01:34.9]} 32. Rf1 {[%clk 0:00:26.9]} 32... Qxf1 {[%clk 0:01:33.4]} 0-1

[Event "Late-Titled-Tuesday-Blitz-April-02-2024"]
[Site "Chess.com"]
[Date "2024.04.02"]
[Round "8"]
[White "expii"]
[Black "Charodej1"]
[Result "1-0"]
[WhiteElo "2230"]
[BlackElo "2357"]
[TimeControl "180+1"]
[EndTime "15:24:38 PDT"]
[Termination "expii won by resignation"]

1. e4 {[%clk 0:03:00.9]} 1... Nf6 {[%clk 0:02:58.6]} 2. e5 {[%clk 0:02:58.4]}
2... Nd5 {[%clk 0:02:58.7]} 3. d4 {[%clk 0:02:59]} 3... d6 {[%clk 0:02:58]} 4.
c4 {[%clk 0:02:59.2]} 4... Nb6 {[%clk 0:02:58.4]} 5. exd6 {[%clk 0:02:59.4]}
5... exd6 {[%clk 0:02:57.6]} 6. Nc3 {[%clk 0:02:59.8]} 6... Be7 {[%clk 0:02:56]}
7. Be2 {[%clk 0:03:00.1]} 7... Nc6 {[%clk 0:02:55.5]} 8. Nf3 {[%clk 0:02:58.2]}
8... Bg4 {[%clk 0:02:54.3]} 9. O-O {[%clk 0:02:55.1]} 9... O-O {[%clk
0:02:53.6]} 10. b3 {[%clk 0:02:53]} 10... Re8 {[%clk 0:02:49.7]} 11. Be3 {[%clk
0:02:51.3]} 11... Bf6 {[%clk 0:02:44.4]} 12. Qd2 {[%clk 0:02:45.4]} 12... a5
{[%clk 0:02:19.8]} 13. Rad1 {[%clk 0:02:40.9]} 13... a4 {[%clk 0:02:19.4]} 14.
h3 {[%clk 0:02:34]} 14... Bh5 {[%clk 0:02:18.8]} 15. d5 {[%clk 0:02:25.9]} 15...
Bxf3 {[%clk 0:02:03.8]} 16. Bxf3 {[%clk 0:02:24.5]} 16... Ne5 {[%clk 0:02:03.6]}
17. Be4 {[%clk 0:02:15.7]} 17... Ned7 {[%clk 0:01:31.6]} 18. Bd4 {[%clk
0:02:08.4]} 18... Nc5 {[%clk 0:01:27.9]} 19. Bc2 {[%clk 0:02:05.2]} 19... Qd7
{[%clk 0:01:18.5]} 20. Bxf6 {[%clk 0:01:51]} 20... gxf6 {[%clk 0:01:17.6]} 21.
Qh6 {[%clk 0:01:45.5]} 21... f5 {[%clk 0:01:16.6]} 22. Rfe1 {[%clk 0:01:39.6]}
22... axb3 {[%clk 0:01:13.2]} 23. axb3 {[%clk 0:01:24.4]} 23... Ra3 {[%clk
0:01:12.7]} 24. Qg5+ {[%clk 0:01:13.1]} 24... Kh8 {[%clk 0:00:51.7]} 25. Bxf5
{[%clk 0:01:09.2]} 25... Qd8 {[%clk 0:00:51.3]} 26. Qh6 {[%clk 0:00:51.2]} 1-0

[Event "Late-Titled-Tuesday-Blitz-April-02-2024"]
[Site "Chess.com"]
[Date "2024.04.02"]
[Round "8"]
[White "Cambek64"]
[Black "Defend1r"]
[Result "0-1"]
[WhiteElo "2511"]
[BlackElo "2653"]
[TimeControl "180+1"]
[EndTime "15:24:54 PDT"]
[Termination "Defend1r won by resignation"]

1. d4 {[%clk 0:02:58.8]} 1... Nf6 {[%clk 0:02:59.1]} 2. Nf3 {[%clk 0:02:58.2]}
2... e6 {[%clk 0:02:58.6]} 3. Bf4 {[%clk 0:02:56.3]} 3... d5 {[%clk 0:02:57.9]}
4. e3 {[%clk 0:02:56.2]} 4... Bd6 {[%clk 0:02:58.6]} 5. Bxd6 {[%clk 0:02:55]}
5... Qxd6 {[%clk 0:02:59.5]} 6. Nbd2 {[%clk 0:02:54.3]} 6... c5 {[%clk
0:02:58.4]} 7. c3 {[%clk 0:02:53.1]} 7... b6 {[%clk 0:02:58.1]} 8. Bb5+ {[%clk
0:02:46.8]} 8... Bd7 {[%clk 0:02:57.6]} 9. Bxd7+ {[%clk 0:02:46.6]} 9... Nbxd7
{[%clk 0:02:58.5]} 10. O-O {[%clk 0:02:45.5]} 10... O-O {[%clk 0:02:56.9]} 11.
Qe2 {[%clk 0:02:45.1]} 11... e5 {[%clk 0:02:56.2]} 12. dxe5 {[%clk 0:02:44.7]}
12... Nxe5 {[%clk 0:02:57.1]} 13. Nxe5 {[%clk 0:02:44.9]} 13... Qxe5 {[%clk
0:02:58]} 14. Nf3 {[%clk 0:02:45.1]} 14... Qe6 {[%clk 0:02:46]} 15. Rfd1 {[%clk
0:02:41.7]} 15... Rad8 {[%clk 0:02:45.7]} 16. h3 {[%clk 0:02:41.2]} 16... Ne4
{[%clk 0:02:45.3]} 17. Nd2 {[%clk 0:02:39.5]} 17... f5 {[%clk 0:02:45.2]} 18.
Rac1 {[%clk 0:02:32.3]} 18... g6 {[%clk 0:02:39.3]} 19. c4 {[%clk 0:02:31.2]}
19... d4 {[%clk 0:02:37.6]} 20. exd4 {[%clk 0:02:26.1]} 20... Rxd4 {[%clk
0:02:35.6]} 21. Nxe4 {[%clk 0:02:23.1]} 21... fxe4 {[%clk 0:02:36.5]} 22. Rc2
{[%clk 0:02:14.9]} 22... Rfd8 {[%clk 0:02:18.5]} 23. Re1 {[%clk 0:02:15.3]}
23... Qf5 {[%clk 0:02:10.6]} 24. b3 {[%clk 0:02:14.1]} 24... a5 {[%clk
0:02:05.9]} 25. Qe3 {[%clk 0:02:13.6]} 25... a4 {[%clk 0:02:03.7]} 26. bxa4
{[%clk 0:02:04.7]} 26... Re8 {[%clk 0:02:02.8]} 27. Rb2 {[%clk 0:01:51.4]} 27...
Re6 {[%clk 0:01:58]} 28. f3 {[%clk 0:01:22.3]} 28... Rd3 {[%clk 0:01:56.9]} 29.
Qe2 {[%clk 0:01:09.2]} 29... e3 {[%clk 0:01:56.6]} 30. a5 {[%clk 0:01:07.9]}
30... bxa5 {[%clk 0:01:49.6]} 31. Rb8+ {[%clk 0:01:06.5]} 31... Kg7 {[%clk
0:01:49]} 32. Qb2+ {[%clk 0:01:03.5]} 32... Kh6 {[%clk 0:01:47.3]} 33. Rb3
{[%clk 0:00:59.5]} 33... Rd2 {[%clk 0:01:45.8]} 34. Rbxe3 {[%clk 0:00:18.2]}
34... Rxb2 {[%clk 0:01:42.1]} 35. Rxe6 {[%clk 0:00:18.1]} 35... Qc2 {[%clk
0:01:40.6]} 0-1

[Event "Late-Titled-Tuesday-Blitz-April-02-2024"]
[Site "Chess.com"]
[Date "2024.04.02"]
[Round "8"]
[White "ellennilssen"]
[Black "AllStarShark"]
[Result "1/2-1/2"]
[WhiteElo "2362"]
[BlackElo "2520"]
[TimeControl "180+1"]
[EndTime "15:24:56 PDT"]
[Termination "Game drawn by repetition"]

1. Nf3 {[%clk 0:03:00.9]} 1... Nf6 {[%clk 0:02:58.4]} 2. b3 {[%clk 0:03:00.5]}
2... d6 {[%clk 0:02:55.9]} 3. Bb2 {[%clk 0:03:01.1]} 3... e5 {[%clk 0:02:56.2]}
4. d3 {[%clk 0:03:00.4]} 4... g6 {[%clk 0:02:55.7]} 5. Nbd2 {[%clk 0:03:00.8]}
5... Bg7 {[%clk 0:02:56]} 6. g3 {[%clk 0:03:01.4]} 6... O-O {[%clk 0:02:56.1]}
7. Bg2 {[%clk 0:03:02.1]} 7... Nc6 {[%clk 0:02:56.2]} 8. O-O {[%clk 0:03:02.8]}
8... Bd7 {[%clk 0:02:50]} 9. e3 {[%clk 0:03:03.2]} 9... Nh5 {[%clk 0:02:47.1]}
10. d4 {[%clk 0:02:59]} 10... f5 {[%clk 0:02:40.5]} 11. dxe5 {[%clk 0:02:58.9]}
11... dxe5 {[%clk 0:02:37]} 12. e4 {[%clk 0:02:59]} 12... fxe4 {[%clk
0:02:28.4]} 13. Nxe4 {[%clk 0:02:59.9]} 13... Bg4 {[%clk 0:02:24.9]} 14. Qxd8
{[%clk 0:02:49.3]} 14... Raxd8 {[%clk 0:02:25.8]} 15. Nfd2 {[%clk 0:02:39.1]}
15... Nd4 {[%clk 0:02:19.4]} 16. c3 {[%clk 0:02:26.8]} 16... Nc6 {[%clk
0:02:09.6]} 17. f3 {[%clk 0:02:23.5]} 17... Bf5 {[%clk 0:02:05.7]} 18. Rad1
{[%clk 0:02:22.2]} 18... Bh6 {[%clk 0:02:01.3]} 19. Bc1 {[%clk 0:02:01.9]} 19...
Be3+ {[%clk 0:01:56.8]} 20. Kh1 {[%clk 0:02:01.5]} 20... Nf6 {[%clk 0:01:41]}
21. Nxf6+ {[%clk 0:01:52.8]} 21... Rxf6 {[%clk 0:01:41.9]} 22. Ne4 {[%clk
0:01:48.6]} 22... Bxe4 {[%clk 0:01:30.1]} 23. fxe4 {[%clk 0:01:32.3]} 23... Rxd1
{[%clk 0:01:16.5]} 24. Rxd1 {[%clk 0:01:25.1]} 24... Bxc1 {[%clk 0:01:16.2]} 25.
Rxc1 {[%clk 0:01:25.7]} 25... Rf2 {[%clk 0:01:16.3]} 26. a4 {[%clk 0:01:21.5]}
26... a5 {[%clk 0:01:06.1]} 27. Bf1 {[%clk 0:01:18.6]} 27... Kf7 {[%clk
0:01:00.3]} 28. Bc4+ {[%clk 0:01:17.5]} 28... Ke7 {[%clk 0:01:00.5]} 29. Kg1
{[%clk 0:01:17.8]} 29... Rd2 {[%clk 0:00:55.4]} 30. Rf1 {[%clk 0:01:15]} 30...
Nd8 {[%clk 0:00:53]} 31. Rf2 {[%clk 0:01:08.9]} 31... Rd1+ {[%clk 0:00:49.5]}
32. Rf1 {[%clk 0:01:07.1]} 32... Rd2 {[%clk 0:00:49.4]} 33. Rf2 {[%clk
0:01:07.3]} 33... Rd1+ {[%clk 0:00:33.7]} 34. Rf1 {[%clk 0:01:06.6]} 34... Rd2
{[%clk 0:00:33.8]} 1/2-1/2